[Event "55th Ladies GM 2024"]
[Site "Belgrade9"]
[Date "2024.03.10"]
[Round "9.1"]
[White "Lu, Miaoyi"]
[Black "Pogorelskikh, Sofia"]
[Result "1-0"]
[ECO "B31"]
[WhiteElo "2392"]
[BlackElo "2214"]
[Annotator "TA"]
[PlyCount "123"]
[EventDate "2024.03.02"]
[EventType "tourn"]
[EventCountry "SRB"]
[SourceTitle "playchess.com"]
[Source "ChessBase"]
[SourceQuality "1"]
[TimeControl "40/5400+30:1800+30"]

{[%evp 20,123,12,3,6,3,27,18,35,36,39,35,44,23,38,0,29,-23,29,0,0,0,8,0,0,0,33,33,33,33,33,33,35,35,35,-93,-38,-70,-74,-50,0,0,-2,-80,-68,-70,-75,-75,-70,-91,-58,-172,-71,-208,-229,-196,-306,-728,-726,-722,218,189,245,199,170,163,145,151,388,360,356,314,401,401,393,367,301,146,503,469,486,469,1219,349,29967,10328,29976,29977,29976,29978,29978,29979,29979,29980,29986,29987,29987,29987,29987,29988,29988,29989,29991,29992,29992,29993]} 1. e4 c5 2. Nf3 Nc6 3. Bb5 g6 4. O-O Bg7 5. Re1 e5 6. Bxc6 {[%emt 0:03:00]} dxc6 {[%emt 0:03:00]} 7. a4 {[%emt 0:00:00]} Qe7 {[%emt 0:01:02]} 8. Na3 {[%emt 0:00:00]} Nh6 {[%emt 0:05:29]} 9. Nc4 {[%emt 0:00:00]} f6 {[%emt 0:00:29]} 10. a5 {[%emt 0:00:00]} O-O {[%emt 0:00:57]} 11. d3 {[%emt 0:00:00]} Nf7 {[%emt 0:03:53]} 12. Be3 {[%emt 1:33:30]} Bh6 13. Nfd2 Be6 {The position is equal.} 14. Qe2 Bxe3 15. Qxe3 Nd8 16. h4 {[%cal Bh2h4,Bh4h5][%mdl 32]} Bf7 17. h5 {[%emt 0:00:00]} Ne6 {[%emt 0:25:02]} 18. g3 {[%emt 0:00:00]} (18. hxg6 $142 hxg6 19. Qh6) 18... g5 {[%emt 0:06:33]} (18... gxh5 $142 19. Qh6 Bg6) 19. h6 {[%emt 0:00:00]} Rfd8 {[%emt 0:05:09][%cal Bf8d8,Bd8d7,Bd7d3][%mdl 32]} 20. Kg2 {[%emt 0:00:00]} Kh8 {[%emt 0:04:20]} 21. Qf3 {[%emt 0:00:00]} Nd4 {[%emt 0:06:22]} 22. Qd1 {[%emt 0:00:00]} Qf8 {[%emt 0:03:19]} 23. Rh1 {[%emt 0:00:00]} Bg6 {[%emt 0:02:04]} 24. Ne3 {[%emt 0:00:00]} Rd7 {[%emt 0:07:55]} 25. Ng4 {[%emt 0:00:00]} Rad8 {[%emt 0:01:42]} 26. Nc4 {[%emt 0:00:00]} Qe7 {[%emt 0:06:20]} 27. c3 {[%emt 0:00:00]} (27. Nge3 $14 {stays ahead.}) 27... Ne6 {[%emt 0:07:10]} (27... Nb5 $1 $17 28. Qf3 Rxd3 29. Qxf6+ Qxf6 30. Nxf6 Rf8) 28. Qf3 {[%emt 0:00:00] [#]} Nf4+ $1 {[%emt 0:06:02]} 29. gxf4 {[%emt 0:00:00]} Rxd3 {[%emt 0:00:01]} 30. Qe2 {[%emt 0:00:00]} exf4 {[%emt 0:00:25] Hoping for ...f3+.} 31. f3 {[%emt 0:00:00]} (31. Kh2 $1 $11 Bh5 32. Rhd1) 31... Bf7 $1 $17 {[%emt 0:01:07][%cal Bg6f7,Bf7c4,Bc4d3,Bd3e2][%mdl 32]} 32. Nf2 $1 {[%emt 0:00:00]} Bxc4 {[%emt 0:00:37]} 33. Nxd3 {[%emt 0:00:00]} Bxd3 {[%emt 0:00:24]} (33... Rxd3 $6 34. Rhd1 Rxd1 (34... Rxc3 35. Qd2 $11) 35. Qxd1 $14) 34. Qe1 {[%emt 0:00:00] White is weak on the light squares} c4 {[%emt 0:02:12][%cal Og5g4] And now ...g4! would win.} 35. Rh5 {[%emt 0:00:00] [#]} ({White should play} 35. Qf2 $1 $15) 35... Qf7 {[%emt 0:01:59]} (35... g4 $1 $19 {[%cal Rg4f3] has better winning chances.} 36. fxg4 Bxe4+ (36... Qxe4+ 37. Qxe4 Bxe4+ 38. Kf1 $16) 37. Kh2 Qe6) 36. Qh1 {[%emt 0:00:00] [#]} (36. Rh3 $17) 36... Be2 $1 $19 {[%emt 0:02:37] ...Rd3 would now be deadly.} 37. Kf2 {[%emt 0:00:00]} Rd2 {[%emt 0:00:35]} 38. Ke1 $2 {[%emt 0:00:00]} (38. Re1 Bd1+ 39. Kg1) 38... Qd7 {[%emt 0:02:02][%cal Od2c2]} 39. Qh3 {[%emt 0:02:34]} g4 $4 {[%emt 0:00:28][%mdl 8192]} (39... Qd8 $19 {[%cal Od2c2] ( -> ...Rc2!)} 40. Rxg5 Rxb2 (40... fxg5 41. Qe6 $11)) 40. Qxg4 $40 {[%emt 0:00:31][%mdl 128] White has strong attack.} Rd1+ {[%emt 0:00:00]} 41. Kf2 $1 {[%emt 0:00:05][%cal Be1f2,Bf2e2,Be2f3,Bf3f4][%mdl 32]} Qxg4 {[%emt 0:12:18]} 42. fxg4 {[%emt 0:00:02]} Rxa1 {[%emt 0:04:04]} 43. Kxe2 {[%emt 0:00:02][%mdl 4096] Endgame. KR-KR} Rg1 $2 {[%emt 0:03:09]} (43... Kg8 $16) 44. Rf5 {[%emt 0:02:54][%csl LRf4,LRf6]} Rxg4 {[%emt 0:01:02]} 45. Rxf6 {[%emt 0:00:15]} Kg8 {[%emt 0:00:58]} 46. Kf3 {[%emt 0:06:32][%csl LRf4,LRg4]} Rg5 {[%emt 0:01:20]} 47. a6 {[%emt 0:06:55]} (47. Kxf4 Rxa5 48. Rd6 Rh5 $14) (47. Rxf4 Rxa5 48. Rg4+ Kf7 $14) 47... Rb5 {[%emt 0:02:03]} 48. axb7 {[%emt 0:04:02]} (48. Rxf4 bxa6 49. Rg4+ Kf7 $16) (48. Kxf4 $18 {is the precise move to win.} bxa6 49. Rxc6) 48... Rxb2 {[%emt 0:01:34][%mdl 8192]} (48... Rxb7 $16 49. Kxf4 (49. Rxc6 Rxb2 50. Kxf4 Kf7 $16) 49... Rxb2 50. Rxc6 Kf7) 49. Rxc6 {[%emt 0:12:12] Intending Rc8+ and mate.} Rxb7 {[%emt 0:00:07]} 50. Kxf4 {[%emt 0:00:06][%cal Of4f5] Threatens to win with Kf5!} (50. Rxc4 Rb6 $16) 50... a5 {[%emt 0:01:18]} (50... Kf8 $142 51. e5 (51. Rxc4 Rb6 $18) 51... Ke8) 51. Kf5 {[%emt 0:02:55][%cal Of5f6] White threatens Kf6! and mate.} (51. Rxc4 Rb6 $16) 51... Rb8 $2 {[%emt 0:05:45]} (51... Kf8 $18 52. Rc8+ (52. Rxc4 Rf7+ 53. Ke6 Re7+ 54. Kd6 Kf7 $16) 52... Ke7) 52. Ra6 {[%emt 0:02:30]} ({Stronger than} 52. Rxc4 Rb6 $11) (52. e5 $142 Rb1 53. Kf6 (53. Rxc4 Rh1 $18) 53... Rf1+ 54. Ke7 Rf7+ 55. Kd6 Rf8 56. e6 (56. Rxc4 Rb8 $18) 56... Rf6 57. Rc8+ (57. Rxc4 Rxh6 58. Kd7 Rf6 59. e7 Rf7 60. Rg4+ Kh8 61. Ke6 Rxe7+ 62. Kxe7 h5) 57... Rf8 58. Rxf8+ (58. Rxc4 Re8 59. Kd7 Rb8 60. Ke7 Rb7+ 61. Kf6 Rb8 62. Rg4+ Kf8 63. e7+ Ke8) 58... Kxf8 59. Kd7) 52... Rf8+ {[%emt 0:00:42]} 53. Ke6 {[%emt 0:00:11] White mates.} Re8+ {[%emt 0:00:20]} 54. Kf6 {[%emt 0:01:02]} Rf8+ {[%emt 0:00:29][%cal Be8f8,Bf8b8,Bb8b7][%mdl 32]} 55. Ke7 {[%emt 0:00:03]} Rb8 {[%emt 0:01:01]} 56. e5 {[%emt 0:00:38][%cal Be4e5,Be5e6][%mdl 32]} ({Weaker is} 56. Rxa5 Rb7+ 57. Ke6 Rb6+ 58. Ke7 Rb7+ 59. Ke8 Rb8+ 60. Kd7 Rb7+ 61. Kc6 Rb3 $18) 56... a4 {[%emt 0:00:28]} 57. e6 {[%emt 0:01:01]} a3 {[%emt 0:00:36]} 58. Rxa3 {[%emt 0:00:21]} Rb7+ {[%emt 0:00:11]} 59. Kf6 {[%emt 0:00:58]} Rb8 {[%emt 0:00:20]} 60. Ra7 {[%emt 0:02:11]} Rc8 {[%emt 0:00:42]} 61. Ke7 {[%emt 0:00:17]} Rb8 {[%emt 0:00:17]} 62. Rd7 {[%emt 0:00:03] Quite a comeback for White.   Weighted Error Value: White=0.30/Black=0.51.  Loses game:     	---       	Black=2      Mistake:       	White=7     	Black=5      Inaccurate:     	White=3     	Black=4      OK:         	White=12    	Black=11     Best:        	White=5     	Black=3      Strong:       	White=2     	Black=2} 1-0

[Event "55th Ladies GM 2024"]
[Site "Belgrade9"]
[Date "2024.03.10"]
[Round "9.2"]
[White "Xu, Yuanyuan"]
[Black "Mehmed, Elif"]
[Result "0-1"]
[ECO "A17"]
[WhiteElo "2288"]
[BlackElo "2194"]
[Annotator "TA"]
[PlyCount "66"]
[EventDate "2024.03.02"]
[EventType "tourn"]
[EventCountry "SRB"]
[SourceTitle "playchess.com"]
[Source "ChessBase"]
[SourceQuality "1"]
[TimeControl "40/5400+30:1800+30"]

{[%evp 9,66,0,2,0,13,-64,-75,-91,-96,-84,-89,-94,-87,-94,29,34,106,37,4,25,63,32,46,-55,0,0,-4,-8,-33,-123,66,76,246,216,458,-165,-160,-195,-127,-133,0,0,0,0,0,-37,0,-173,-178,-215,-202,-388,-327,-1056,-958,-1041,-1020,-29992,-2882]} 1. Nf3 d5 2. e3 Nf6 3. c4 e6 4. Nc3 Bd6 5. b3 O-O {[%emt 1:32:40]} 6. Bb2 {[%emt 0:09:45]} Re8 {[%emt 0:00:50] [#]} 7. g4 e5 $15 8. g5 {Black is better.} d4 $1 9. gxf6 dxc3 10. Bxc3 Qxf6 {[%emt 0:00:00]} 11. Rg1 {[%emt 0:16:51]} c5 {[%emt 0:00:00]} (11... Bf5 $17 12. b4 c6) 12. Ng5 $11 {[%emt 0:26:56]} Bf8 {[%emt 0:00:00] [#]} ({Better is} 12... Be7 $14) 13. Nxh7 {[%emt 0:12:11]} Kxh7 $14 {[%emt 0:00:00]} 14. Qh5+ {[%emt 0:00:02]} Kg8 {[%emt 0:00:00]} 15. Bd3 {[%emt 0:00:15][%csl Gd3][%cal Rh5h7][%mdl 1024] White has compensation.} Bd6 {[%emt 0:00:00]} 16. O-O-O {[%emt 0:03:41]} (16. Rg3 $1 $14 Be6 17. O-O-O) 16... Kf8 $1 $15 {[%emt 0:00:00][%cal Of6h6]} (16... Qxf2 $2 17. Rdf1 $18) 17. f4 {[%emt 0:04:37]} Qh6 {[%emt 0:00:00] Inhibits Rdf1.} 18. Qf3 {[%emt 0:00:24] Rdf1 is the strong threat.} Nc6 {[%emt 0:00:00]} (18... Qxh2 $2 19. Rh1 $18) 19. Rg5 {[%emt 0:00:28] [#]} ({White should try} 19. Rdf1 $15 Be6 (19... Qxh2 $2 20. fxe5 Re7 21. Rh1 $18) 20. h4) 19... Qh3 $2 {[%emt 0:00:00]} (19... Qxh2 $2 20. Rh1 $18) ({Black should play} 19... Nb4 $1 $17 {[%cal Rb4d3]} 20. Bb1 g6 (20... Qxh2 $2 21. Rh1 $18) 21. Rxg6 fxg6 (21... Nxa2+ 22. Kb2 $11) 22. fxe5+ Kg8 23. exd6 Rf8) 20. Rg3 $1 $14 {[%emt 0:03:19]} Qh4 {[%emt 0:00:00]} (20... Qxh2 $2 21. Rh1 $18) (20... Qh6 $16 {was worth a try.}) 21. Rdg1 $18 {[%emt 0:02:01]} exf4 $2 {[%emt 0:00:00]} (21... Qf6 {was necessary.} 22. Rxg7 Rb8) 22. Bxg7+ $4 {[%emt 0:05:19][%mdl 8192]} (22. Rxg7 $18 {is the narrow road to win.} Nb4 23. Bb1) 22... Ke7 $19 {[%emt 0:00:00]} 23. Rg5 {[%emt 0:00:29]} Qh3 {[%emt 0:00:00]} (23... Qxh2 $2 24. Rh1 $18) (23... Kd8 $19 {Strongly threatening ...fxe3.} 24. Rh5 Qe7 25. exf4 Nb4) 24. Qf2 {[%emt 0:02:13]} f3 {[%emt 0:00:00]} (24... Be6 $17 {Threatens to win with ...fxe3.} 25. Bf1 Qh7 26. exf4 Rg8) 25. Bf1 $11 {[%emt 0:04:32]} Qe6 {[%emt 0:00:00]} 26. Qxf3 {[%emt 0:00:09][%cal Of1h3] Hoping for Bh3!} Ne5 {[%emt 0:00:00]} 27. Qh5 {[%emt 0:02:41]} f6 {[%emt 0:00:00]} (27... Kd8 $5) 28. Bh6 {[%emt 0:04:11]} Kd8 $19 {[%emt 0:00:00]} (28... fxg5 29. Bxg5+ Kd7 30. Bh3 $14) 29. Rg7 {[%emt 0:01:31]} a5 {[%emt 0:00:00] ...a4 would now be deadly.} 30. Rh7 $2 {[%emt 0:01:30]} (30. Bg2) 30... a4 {[%emt 0:00:41]} 31. Bh3 $2 {[%emt 0:00:50] [#]} (31. Bf4) 31... Nd3+ $1 {[%emt 0:00:21]} (31... Qxh3 32. Qxe8+ Kxe8 33. Rg8+) 32. Kb1 {[%emt 0:01:56]} Qe4 {[%emt 0:00:06] ( -> ...Nb4+)} (32... Qxh3 33. Qxe8+ Kxe8 34. Rg8+) 33. Bg5 {[%emt 0:00:37]} Nf4+ {[%emt 0:00:28] Black used his chance.   Weighted Error Value: White=0.82/Black=0.46.  Loses game:     	White=1     	Black=1      Missed win:     	White=1     	---        Mistake:       	White=6     	Black=6      Inaccurate:     	White=1     	Black=1      OK:         	White=7     	Black=7      Best:        	White=3     	Black=3      Strong:       	White=1     	Black=3} (33... Nb4+ $142 34. Ka1 Be5+ (34... fxg5 $2 35. Qxg5+ Re7 36. Rxe7 $19) 35. d4 Bxd4+ (35... Bxh2 36. Bxf6+) 36. exd4 Qxd4+ (36... fxg5 37. Qxg5+ Re7 38. Qxe7+ Qxe7 39. Rg8+ $16) 37. Kb1 Qd3+ (37... Qxg1+ {leads to mate.} 38. Bc1 axb3 39. a3 b2 40. Qxe8+ Kxe8 41. Rh8+ Kf7 42. Rh7+ Kg8 43. Rg7+ Kxg7 44. Kxb2 Qf2+ 45. Bd2 Qxd2+ 46. Kb1 Qc2+ 47. Ka1 Rxa3#) 38. Ka1 Qc3+ (38... fxg5 39. Qxg5+) 39. Kb1 Qc2+ 40. Ka1 Qxa2#) 0-1

[Event "55th Ladies GM 2024"]
[Site "Belgrade9"]
[Date "2024.03.10"]
[Round "9.3"]
[White "Kubicka, Anna"]
[Black "Vujovic, Vera"]
[Result "1/2-1/2"]
[ECO "C48"]
[WhiteElo "2278"]
[BlackElo "2175"]
[Annotator "TA"]
[PlyCount "106"]
[EventDate "2024.03.02"]
[EventType "tourn"]
[EventCountry "SRB"]
[SourceTitle "playchess.com"]
[Source "ChessBase"]
[SourceQuality "1"]
[TimeControl "40/5400+30:1800+30"]

{[%evp 9,106,3,18,16,20,15,11,0,14,14,7,0,23,46,60,0,0,0,2,0,0,0,0,0,-7,0,0,-4,-7,-4,-11,-45,-27,-32,-30,-77,-21,-42,-9,-6,-8,-8,-7,-9,-7,-7,-7,-7,-6,-3,0,-4,-5,-9,0,0,0,-10,-14,-14,-12,-54,-6,-6,-6,-8,-4,-4,-3,-4,0,0,0,0,0,0,0,0,0,0,0,0,0,0,0,0,0,0,0,0,0,0,0,0,0,0,0,0,0]} 1. e4 e5 2. Nf3 Nc6 3. Nc3 Nf6 4. Bb5 Nd4 5. O-O Nxf3+ 6. Qxf3 {[%emt 0:03:00][%cal Od2d4]} c6 {[%emt 0:09:53]} 7. Bc4 {[%emt 0:00:00][%cal Od2d4]} Bc5 {[%emt 1:24:07]} 8. Qg3 {[%csl LRe5,LRg7]} Qe7 9. d3 d6 {[%emt 0:00:00]} 10. Bb3 {[%emt 0:18:01][%cal Oc3a4]} (10. Qxg7 $5 Rg8 $8 11. Qh6 $11) 10... Be6 {[%emt 0:00:00]} 11. Na4 {[%emt 0:10:37]} Bb4 {[%emt 0:00:00]} 12. a3 {[%emt 0:09:59]} (12. Qxg7 $14 Rg8 13. Qh6) 12... Ba5 $11 {[%emt 0:00:00]} 13. Bxe6 {[%emt 0:06:06]} fxe6 {[%emt 0:00:00]} 14. f4 {[%emt 0:02:34]} exf4 {[%emt 0:00:00]} 15. Bxf4 {[%emt 0:02:05]} e5 {[%emt 0:00:00]} 16. Bg5 {[%emt 0:02:30]} O-O {[%emt 0:00:00]} 17. Rf5 {[%emt 0:05:05]} Rf7 {[%emt 0:00:00]} (17... Qe6 {sieht schärfer aus.} 18. Bh6 Rf7 19. Raf1 Bd8) 18. Raf1 {[%emt 0:39:33]} Raf8 {[%emt 0:00:00]} 19. b4 {[%emt 0:00:00]} Bd8 {[%emt 0:00:00]} 20. Qh3 {[%emt 0:00:00]} b5 {[%emt 0:00:00]} 21. Nc3 {[%emt 0:00:00]} Qe6 {[%emt 0:00:23]} 22. Kh1 {[%emt 0:00:00] [#]} (22. Qg3 $11) 22... Be7 {[%emt 0:00:46]} (22... g6 $1 $17 {[%cal Rg6f5]} 23. Bxf6 Bxf6 (23... gxf5 24. Qg3+)) 23. Bxf6 {[%emt 0:00:00]} (23. Kg1 {mit weiteren Verwicklungen.} a6 24. Qg3 g6 25. Bh6) 23... Rxf6 {[%emt 0:01:26]} (23... Bxf6 {hält die Spannung aufrecht.} 24. Qg3 d5 25. h3 d4) 24. Rxf6 {[%emt 0:00:00]} Rxf6 {[%emt 0:00:08][%cal Rf6f1]} 25. Qxe6+ {[%emt 0:01:11]} Rxe6 {[%emt 0:00:06][%mdl 4096] Endspiel. KRB-KRN} 26. g3 {[%emt 0:00:57]} Rf6 {[%emt 0:01:29]} 27. Kg2 {[%emt 0:00:34]} Rxf1 {[%emt 0:00:41]} 28. Kxf1 {[%emt 0:00:02] KB-KN} Bg5 {[%emt 0:00:38]} 29. Ke2 {[%emt 0:00:51]} Bc1 {[%emt 0:01:36]} 30. Nb1 {[%emt 0:01:17]} Kf7 {[%emt 0:01:19]} 31. Kd1 {[%emt 0:00:27]} Bg5 {[%emt 0:00:53]} 32. c4 {[%emt 0:00:08]} a6 {[%emt 0:00:32]} 33. cxb5 {[%emt 0:00:13]} axb5 {[%emt 0:00:38]} 34. Nc3 {[%emt 0:00:05]} Be3 {[%emt 0:00:42]} 35. Kc2 {[%emt 0:00:40]} h5 {[%emt 0:01:03]} (35... Kg6 $15) 36. h3 {[%emt 0:01:15] Die Stellung ist ausgeglichen.} Bf2 {[%emt 0:00:46]} 37. Ne2 {[%emt 0:00:39]} Kf6 {[%emt 0:00:28]} 38. Kb3 {[%emt 0:00:05]} Be3 {[%emt 0:01:08]} 39. a4 {[%emt 0:00:13]} bxa4+ {[%emt 0:00:38]} 40. Kxa4 {[%emt 0:00:02]} Bf2 {[%emt 0:00:29]} 41. b5 {[%emt 0:30:37]} cxb5+ {[%emt 0:30:28]} 42. Kxb5 {[%emt 0:01:47]} g6 {[%emt 0:00:00]} 43. Kc6 {[%emt 0:00:00]} Ke6 {[%emt 0:00:00]} 44. g4 {[%emt 0:00:00]} hxg4 {[%emt 0:00:00]} 45. hxg4 {[%emt 0:00:00]} Bc5 {[%emt 0:00:00] [#] Weiss muss nun ...Kf6 beachten.} 46. Nc3 {[%emt 0:00:00]} Kf6 {[%emt 0:00:00] ...Kg5 wäre nun fies.} 47. Nb5 {[%emt 0:00:00]} Kg5 {[%emt 0:00:00]} 48. Nxd6 {[%emt 0:00:00]} Bd4 {[%emt 0:00:00]} 49. Nb5 {[%emt 0:00:00] Weiss will mit Nxd4 Matt setzen.} Bb2 {[%emt 0:00:00]} 50. Kd5 {[%emt 0:00:00]} Kxg4 {[%emt 0:00:00]} 51. d4 {[%emt 0:00:00]} Kf4 {[%emt 0:00:00] Droht stark ...g5.} 52. dxe5 {[%emt 0:00:00]} Bxe5 {[%emt 0:00:00] Zielt auf ...g5 ab.} 53. Nd4 {[%emt 0:00:00]} Bxd4 {[%emt 0:01:36] Gewichteter Fehlerwert: Weiß=0.07 (makellos) /Schwarz=0.07 (makellos) .  Fehler:       	Weiß=2     	Schwarz=2     Ungenau:       	Weiß=2     	Schwarz=1     OK:         	Weiß=24    	Schwarz=19    Bester:       	Weiß=2     	Schwarz=3} 1/2-1/2

[Event "55th Ladies GM 2024"]
[Site "Belgrade9"]
[Date "2024.03.10"]
[Round "9.4"]
[White "Djukic, Sandra"]
[Black "Maltsevskaya, Aleksandra"]
[Result "0-1"]
[ECO "A70"]
[WhiteElo "2127"]
[BlackElo "2374"]
[Annotator "TA"]
[PlyCount "118"]
[EventDate "2024.03.02"]
[EventType "tourn"]
[EventCountry "SRB"]
[SourceTitle "playchess.com"]
[Source "ChessBase"]
[SourceQuality "1"]
[TimeControl "40/5400+30:1800+30"]

{[%evp 22,118,14,0,74,54,40,39,143,132,136,106,72,0,145,141,328,301,306,318,325,318,380,388,389,155,156,139,124,125,130,85,114,116,150,0,0,0,18,18,16,0,0,-89,-105,-153,-145,-127,-141,-326,-308,-336,-324,-289,-316,-364,-295,-316,-375,-384,-374,-379,-322,-280,-123,-137,-145,-136,-121,-104,-69,-75,-76,-387,-381,-328,-69,-69,-66,-66,-58,-806,-701,-982,-998,-1618,-1618,-1610,-1610,-1610,-1610,-1610,-1603,-1603,-1592,-1546,-1305,-748,-697]} 1. d4 Nf6 2. c4 g6 3. Nc3 Bg7 4. e4 d6 5. h3 O-O 6. Nf3 {[%emt 1:33:30]} c5 {[%emt 1:33:30]} 7. d5 e6 8. Be3 exd5 9. cxd5 Re8 10. Nd2 Qa5 {[%emt 0:00:00]} 11. Nf3 {[%emt 0:00:00]} Qd8 $2 {[%emt 0:00:00]} (11... Rxe4 12. Nd2 $15) (11... Nxe4 $19) 12. Nd2 {[%emt 0:00:00]} (12. Bd3 $11) 12... Qa5 $16 {[%emt 0:00:00]} 13. Nc4 {[%emt 0:00:00]} Qd8 {[%emt 0:00:00]} 14. Bd3 {[%emt 0:00:00]} b5 {[%emt 0:00:00]} (14... b6 $14) 15. Nxb5 $16 {[%emt 0:00:00]} Nxe4 {[%emt 0:00:00]} 16. Bxe4 {[%emt 0:00:00]} Rxe4 {[%emt 0:00:00]} 17. Qd3 {[%emt 0:00:00]} (17. Ncxd6 Rxe3+ 18. fxe3 Qh4+ 19. Kd2 Nd7 $15) ({Better is} 17. Nbxd6 $16 Rxe3+ 18. fxe3) 17... Bf5 {[%emt 0:00:00]} (17... Rh4 $11) 18. Nbxd6 $16 {[%emt 0:00:00]} Bxb2 $2 {[%emt 0:00:00]} (18... Rd4 $16 {was necessary.} 19. Qb3 Rxc4 20. Nxc4 Qxd5) 19. Nxf5 $1 $18 {[%emt 0:00:00]} (19. Nxb2 Qxd6 20. O-O Nd7 $14) (19. Nxe4 Bxa1 20. O-O (20. Bxc5 Nd7 $11) 20... Bg7 $16) 19... Rxe3+ {[%emt 0:00:00]} 20. fxe3 {[%emt 0:00:00]} (20. Nfxe3 Bxa1 21. O-O Bd4 $16) 20... Bxa1 {[%emt 0:00:00]} 21. O-O $1 {[%emt 0:00:00]} Bg7 {[%emt 0:00:00]} 22. Nxg7 {[%emt 0:00:00]} Kxg7 {[%emt 0:00:00]} 23. e4 $2 {[%emt 0:00:00]} (23. Qc3+ $18 {is the precise move to win.} f6 24. e4) 23... Nd7 $16 {[%emt 0:00:00]} 24. Qc3+ {[%emt 0:00:00]} Kg8 {[%emt 0:00:00]} 25. e5 {[%emt 0:00:00]} Qe7 {[%emt 0:00:00]} 26. Rb1 {[%emt 0:02:12]} Rd8 {[%emt 0:00:00]} 27. Rb7 {[%emt 0:01:57]} Qg5 {[%emt 0:00:00] [#]} 28. Kh2 {[%emt 0:02:02]} (28. Qe1 $1 $16) 28... Qf4+ $11 {[%emt 0:00:00]} 29. Kh1 {[%emt 0:01:48]} h5 {[%emt 0:00:00]} 30. e6 {[%emt 0:03:06]} fxe6 {[%emt 0:00:00]} 31. Ne3 {[%emt 0:00:51]} (31. Rxa7 Qf1+ (31... exd5 32. Nd2 $17) 32. Kh2 exd5 $17) (31. dxe6 $5 Nf6 32. Qf3 $16 (32. Rxa7 $2 Rd1+)) 31... Qd4 {[%emt 0:09:24]} 32. Qe1 {[%emt 0:00:22]} (32. Qa5 $11 {keeps the balance.} Qa1+ 33. Kh2 Qe5+ 34. Kh1) 32... exd5 $17 {[%emt 0:00:42]} 33. Qg3 {[%emt 0:00:07] [#]} ({White should try} 33. Nf5 gxf5 34. Qe6+ Kf8 35. Qd6+ Kf7 36. Rxd7+ Rxd7 37. Qxd7+ Kg6 38. Qd6+ Qf6 39. Qxc5) 33... Qa1+ $1 $17 {[%emt 0:01:33]} 34. Kh2 {[%emt 0:00:01]} Qe5 {[%emt 0:00:08]} (34... Qxa2 35. Qxg6+ Kh8 36. Qh6+ (36. Qxh5+ Kg8 37. Qg5+ Kf7 38. Qxd8 Qa4 39. Rxd7+ Qxd7 40. Qxd7+ Kf6 41. Ng4+ Kg6) 36... Kg8 37. Qg5+ (37. Qxh5 Qa6 $18) 37... Kf7 38. Qxd8 Qa4 39. Rxd7+) 35. Nxd5 $2 {[%emt 0:01:26]} (35. Rxa7 $17 {might work better.} Qxg3+ 36. Kxg3) 35... Qxd5 $19 {[%emt 0:00:16]} 36. Qxg6+ {[%emt 0:00:05]} Kf8 {[%emt 0:00:03]} 37. Rxa7 {[%emt 0:00:53]} Qe5+ {[%emt 0:02:35]} 38. Kh1 {[%emt 0:00:10]} Qf6 {[%emt 0:00:42]} 39. Qxh5 {[%emt 0:00:41]} Qa1+ {[%emt 0:00:32]} 40. Kh2 {[%emt 0:00:06]} Qe5+ {[%emt 0:00:12]} 41. Qxe5 {[%emt 0:30:03]} Nxe5 {[%emt 0:30:04]} 42. Rc7 {[%emt 0:00:41]} Nd7 {[%emt 0:00:49]} (42... c4 $19 {and Black stays clearly on top. aiming for ...Rd5.} 43. Kg3 Rd4) 43. h4 {[%emt 0:00:00]} Ke7 {[%emt 0:00:00]} 44. Rc6 {[%emt 0:00:00]} Ra8 {[%emt 0:00:00]} 45. h5 {[%emt 0:00:00]} Rxa2 {[%emt 0:00:00]} 46. Kg3 {[%emt 0:00:00]} Ra8 {[%emt 0:00:00]} 47. Kf4 $2 {[%emt 0:00:00][%mdl 8192]} (47. h6 $17 {is a better chance.}) 47... Rf8+ $19 {[%emt 0:00:00]} 48. Kg3 {[%emt 0:00:00]} Rg8+ $2 {[%emt 0:00:00]} (48... Rf6 $19 49. Rc8 Kd6) 49. Kh3 $15 {[%emt 0:00:00]} Rg5 {[%emt 0:00:00]} 50. g4 {[%emt 0:00:00]} Nf6 {[%emt 0:01:32]} 51. Rc8 $2 {[%emt 0:00:00][%mdl 8192]} (51. h6 $15) 51... Kd7 $19 {[%emt 0:01:19]} ({Not} 51... Nxg4 52. Kh4 Rg7 53. Rxc5 $11 (53. Rc7+ Kf6 $11)) 52. Ra8 {[%emt 0:00:00]} Rxg4 {[%emt 0:01:29]} ({Inferior is} 52... Nxg4 53. Kh4 $11) 53. Ra7+ {[%emt 0:00:00]} Ke8 {[%emt 0:00:05]} 54. Ra6 {[%emt 0:00:00]} Rf4 {[%emt 0:00:07]} 55. h6 {[%emt 0:00:00]} Kf7 {[%emt 0:00:14]} 56. Rc6 {[%emt 0:00:00]} Rf5 {[%emt 0:00:06]} 57. h7 {[%emt 0:01:24]} Rh5+ {[%emt 0:00:22]} 58. Kg3 {[%emt 0:00:04]} Nxh7 {[%emt 0:00:05]} 59. Kf4 {[%emt 0:00:24]} Nf6 {[%emt 0:00:07]} 0-1

[Event "55th Ladies GM 2024"]
[Site "Belgrade9"]
[Date "2024.03.10"]
[Round "9.5"]
[White "Doluhanova, Evgeniya"]
[Black "Kulkarni Bhakti"]
[Result "1/2-1/2"]
[ECO "A07"]
[WhiteElo "2261"]
[BlackElo "2372"]
[Annotator "TA"]
[PlyCount "26"]
[EventDate "2024.03.02"]
[EventType "tourn"]
[EventCountry "SRB"]
[SourceTitle "playchess.com"]
[Source "ChessBase"]
[SourceQuality "1"]
[TimeControl "40/5400+30:1800+30"]

{[%evp 9,26,-5,-8,2,0,-6,-2,-9,-1,0,2,-30,-31,-32,-30,-56,-49,-68,-57]} 1. Nf3 Nf6 2. g3 {[%emt 0:01:00]} d5 {[%emt 0:01:00]} 3. Bg2 {[%emt 0:01:13]} Bf5 {[%emt 0:07:36]} 4. d3 {[%emt 0:03:11]} c6 {[%emt 0:02:01]} 5. c3 {[%emt 0:01:38]} Nbd7 {[%emt 1:22:23]} 6. Nh4 Bg4 7. h3 Bh5 8. g4 {The position is equal.} Bg6 9. f4 e6 10. Be3 Be7 {[%cal Of6g4]} 11. Nxg6 hxg6 12. Qb3 Bc5 {[%emt 0:00:00]} 13. d4 {[%emt 0:04:42]} Bd6 {[%emt 0:04:00] Weighted Error Value: White=0.10 (very precise) /Black=0.01 (flawless) .  Inaccurate:     	White=2     	---        OK:         	White=4     	Black=5      Best:        	---       	Black=1} 1/2-1/2